[Event "Live Chess"]
[Site "Chess.com"]
[Date "2023.05.20"]
[Round "-"]
[White "LanceMaster23"]
[Black "Misha145Chess"]
[Result "1-0"]
[WhiteElo "1861"]
[BlackElo "596"]
[TimeControl "300"]
[EndTime "10:14:26 PDT"]
[Termination "LanceMaster23 won by checkmate"]

1. Nf3 {[%clk 0:04:58.4]} 1... Nc6 {[%clk 0:04:57.9]} 2. d4 {[%clk 0:04:57.8]}
2... d6 {[%clk 0:04:56]} 3. Bf4 {[%clk 0:04:57.2]} 3... Nf6 {[%clk 0:04:52.7]}
4. e3 {[%clk 0:04:55.7]} 4... Ne4 {[%clk 0:04:51]} 5. Nbd2 {[%clk 0:04:53]} 5...
Nxd2 {[%clk 0:04:49.5]} 6. Qxd2 {[%clk 0:04:52.9]} 6... f6 {[%clk 0:04:46.9]} 7.
c3 {[%clk 0:04:51.8]} 7... e5 {[%clk 0:04:46.1]} 8. dxe5 {[%clk 0:04:51.5]} 8...
fxe5 {[%clk 0:04:43.5]} 9. Bg3 {[%clk 0:04:50.3]} 9... e4 {[%clk 0:04:37.4]} 10.
Nd4 {[%clk 0:04:49]} 10... Nxd4 {[%clk 0:04:35.6]} 11. cxd4 {[%clk 0:04:48.1]}
11... Bf5 {[%clk 0:04:31.1]} 12. d5 {[%clk 0:04:42]} 12... Qg5 {[%clk
0:04:23.7]} 13. Bb5+ {[%clk 0:04:38.9]} 13... Bd7 {[%clk 0:04:17.5]} 14. Qa5
{[%clk 0:04:25.5]} 14... O-O-O {[%clk 0:04:07.4]} 15. Bc4 {[%clk 0:04:09.8]}
15... Be7 {[%clk 0:03:49.7]} 16. Qxa7 {[%clk 0:04:08.4]} 16... Rhf8 {[%clk
0:03:46.1]} 17. Qa8# {[%clk 0:04:07.2]} 1-0

[Event "Live Chess"]
[Site "Chess.com"]
[Date "2023.05.20"]
[Round "-"]
[White "lHolyDiverl"]
[Black "Zeraora719"]
[Result "0-1"]
[WhiteElo "546"]
[BlackElo "857"]
[TimeControl "300"]
[EndTime "10:14:27 PDT"]
[Termination "Zeraora719 won on time"]

1. d4 {[%clk 0:04:57]} 1... d5 {[%clk 0:04:49]} 2. Nc3 {[%clk 0:04:56.1]} 2...
e6 {[%clk 0:04:22.9]} 3. Bf4 {[%clk 0:04:54.9]} 3... Bb4 {[%clk 0:04:08.6]} 4.
Qd3 {[%clk 0:04:35.8]} 4... Nf6 {[%clk 0:03:49.7]} 5. Qb5+ {[%clk 0:04:33.2]}
5... Nc6 {[%clk 0:03:39.8]} 6. O-O-O {[%clk 0:04:06.9]} 6... Bxc3 {[%clk
0:03:29.8]} 7. bxc3 {[%clk 0:04:00.8]} 7... Ne4 {[%clk 0:03:25.1]} 8. Rd3 {[%clk
0:03:41]} 8... Nxf2 {[%clk 0:03:14.2]} 9. Nf3 {[%clk 0:03:18.9]} 9... Nxh1
{[%clk 0:03:03.2]} 10. Ne5 {[%clk 0:03:15.9]} 10... a6 {[%clk 0:02:46.3]} 11.
Qa4 {[%clk 0:02:47.8]} 11... b5 {[%clk 0:02:39.7]} 12. Nxc6 {[%clk 0:02:11.8]}
12... bxa4 {[%clk 0:01:53.5]} 13. Nxd8 {[%clk 0:02:07.1]} 13... Kxd8 {[%clk
0:01:45.8]} 14. Bg5+ {[%clk 0:01:41.9]} 14... f6 {[%clk 0:01:41.1]} 15. Be3
{[%clk 0:01:40.8]} 15... e5 {[%clk 0:01:37.9]} 16. Rd1 {[%clk 0:01:34.6]} 16...
exd4 {[%clk 0:01:35.7]} 17. Bxd4 {[%clk 0:01:32.4]} 17... Be6 {[%clk 0:01:19.9]}
18. g3 {[%clk 0:01:28.8]} 18... Nf2 {[%clk 0:01:17.4]} 19. Bxf2 {[%clk 0:01:25]}
19... Rb8 {[%clk 0:01:13.1]} 20. Bg2 {[%clk 0:00:55.2]} 20... Bf5 {[%clk
0:01:05.8]} 21. Rxd5+ {[%clk 0:00:51.3]} 21... Bd7 {[%clk 0:00:57.2]} 22. Bh3
{[%clk 0:00:38.6]} 22... c6 {[%clk 0:00:54.3]} 23. Rxd7+ {[%clk 0:00:36]} 23...
Kc8 {[%clk 0:00:51.2]} 24. Rxg7+ {[%clk 0:00:26.4]} 24... Kd8 {[%clk 0:00:48.5]}
25. Rd7+ {[%clk 0:00:19.8]} 25... Ke8 {[%clk 0:00:44.7]} 26. Ra7 {[%clk
0:00:14.9]} 26... Rd8 {[%clk 0:00:41.5]} 27. Bc5 {[%clk 0:00:09.7]} 27... Rg8
{[%clk 0:00:38]} 28. Re7+ {[%clk 0:00:07.4]} 28... Kf8 {[%clk 0:00:33.9]} 29.
Rd7+ {[%clk 0:00:02.8]} 29... Ke8 {[%clk 0:00:28.6]} 30. Rxd8+ {[%clk
0:00:02.5]} 30... Kxd8 {[%clk 0:00:27.2]} 0-1

[Event "Live Chess"]
[Site "Chess.com"]
[Date "2023.05.20"]
[Round "-"]
[White "yarek"]
[Black "TobyQuaite"]
[Result "1/2-1/2"]
[WhiteElo "1896"]
[BlackElo "1704"]
[TimeControl "300"]
[EndTime "10:14:31 PDT"]
[Termination "Game drawn by agreement"]

1. e4 {[%clk 0:04:57.1]} 1... e6 {[%clk 0:04:59]} 2. d4 {[%clk 0:04:54.8]} 2...
d5 {[%clk 0:04:58.2]} 3. exd5 {[%clk 0:04:52.9]} 3... exd5 {[%clk 0:04:58.1]} 4.
Bd3 {[%clk 0:04:51.1]} 4... Nf6 {[%clk 0:04:55.4]} 5. c3 {[%clk 0:04:49.9]} 5...
Bd6 {[%clk 0:04:54.9]} 6. Bg5 {[%clk 0:04:48.1]} 6... O-O {[%clk 0:04:53.1]} 7.
Nf3 {[%clk 0:04:46.6]} 7... Re8+ {[%clk 0:04:52.3]} 8. Be2 {[%clk 0:04:30.2]}
8... Bg4 {[%clk 0:04:49.9]} 9. O-O {[%clk 0:04:26.4]} 9... h6 {[%clk 0:04:48.9]}
10. Bh4 {[%clk 0:04:23.8]} 10... Nbd7 {[%clk 0:04:47.7]} 11. h3 {[%clk
0:04:19.4]} 11... Bh5 {[%clk 0:04:46.6]} 12. Nbd2 {[%clk 0:04:14.1]} 12... c6
{[%clk 0:04:45.9]} 13. Bd3 {[%clk 0:04:07.6]} 13... Qc7 {[%clk 0:04:44.4]} 14.
Qc2 {[%clk 0:04:01.5]} 14... Bf4 {[%clk 0:03:39.3]} 15. g4 {[%clk 0:03:41.7]}
15... Bg6 {[%clk 0:03:36.7]} 16. Bxg6 {[%clk 0:03:39.1]} 16... fxg6 {[%clk
0:03:36.6]} 17. Qxg6 {[%clk 0:03:36.5]} 17... Nf8 {[%clk 0:03:35.9]} 18. Qf5
{[%clk 0:03:21.3]} 18... Ne4 {[%clk 0:03:17.9]} 19. Nxe4 {[%clk 0:03:05.5]}
19... Rxe4 {[%clk 0:03:17.8]} 20. Rfe1 {[%clk 0:02:51.5]} 20... Rae8 {[%clk
0:03:13.2]} 21. g5 {[%clk 0:02:28.7]} 21... hxg5 {[%clk 0:02:51.9]} 22. Bxg5
{[%clk 0:02:19.2]} 22... Bxg5 {[%clk 0:02:48.9]} 23. Qxg5 {[%clk 0:02:08.1]}
23... R8e6 {[%clk 0:02:47.9]} 24. Kh1 {[%clk 0:01:44.6]} 24... Qf7 {[%clk
0:02:40.3]} 25. Qg2 {[%clk 0:01:22.6]} 25... Rg6 {[%clk 0:02:21.6]} 26. Ng5
{[%clk 0:01:13.6]} 26... Qf5 {[%clk 0:01:57.8]} 27. Rxe4 {[%clk 0:01:06.2]}
27... dxe4 {[%clk 0:01:50.5]} 28. h4 {[%clk 0:01:00.9]} 28... Ne6 {[%clk
0:01:45.5]} 29. Qxe4 {[%clk 0:00:57.6]} 29... Qxe4+ {[%clk 0:01:39.9]} 30. Nxe4
{[%clk 0:00:56.5]} 30... Rh6 {[%clk 0:01:39.5]} 31. Nd6 {[%clk 0:00:40.9]} 31...
Rxh4+ {[%clk 0:01:37.7]} 32. Kg1 {[%clk 0:00:38.3]} 32... b5 {[%clk 0:01:27.2]}
33. Re1 {[%clk 0:00:35.8]} 33... Ng5 {[%clk 0:01:21.7]} 34. Re8+ {[%clk
0:00:31.6]} 34... Kh7 {[%clk 0:01:20.8]} 35. Re7 {[%clk 0:00:27.7]} 35... a5
{[%clk 0:00:59]} 36. Rxg7+ {[%clk 0:00:24.4]} 36... Kxg7 {[%clk 0:00:50.5]} 37.
Nf5+ {[%clk 0:00:24]} 37... Kf7 {[%clk 0:00:50.2]} 38. Nxh4 {[%clk 0:00:23.3]}
38... Ne6 {[%clk 0:00:48.1]} 39. Kg2 {[%clk 0:00:20.8]} 1/2-1/2

[Event "Live Chess"]
[Site "Chess.com"]
[Date "2023.05.20"]
[Round "-"]
[White "ranvir123"]
[Black "mach247"]
[Result "1-0"]
[WhiteElo "893"]
[BlackElo "1341"]
[TimeControl "300"]
[EndTime "10:14:31 PDT"]
[Termination "ranvir123 won by resignation"]

1. e4 {[%clk 0:04:58]} 1... d5 {[%clk 0:04:59.5]} 2. exd5 {[%clk 0:04:56]} 2...
Qxd5 {[%clk 0:04:59.4]} 3. Nf3 {[%clk 0:04:55.2]} 3... Bg4 {[%clk 0:04:58]} 4.
Nc3 {[%clk 0:04:54.4]} 4... Qd7 {[%clk 0:04:56.7]} 5. h3 {[%clk 0:04:43.9]} 5...
Bxf3 {[%clk 0:04:39]} 6. Qxf3 {[%clk 0:04:41.9]} 6... Nc6 {[%clk 0:04:38.4]} 7.
Bc4 {[%clk 0:04:38.2]} 7... e6 {[%clk 0:04:30.1]} 8. O-O {[%clk 0:04:30.7]} 8...
Nf6 {[%clk 0:04:20.3]} 9. d4 {[%clk 0:04:28.3]} 9... Be7 {[%clk 0:04:11.5]} 10.
Be3 {[%clk 0:04:24]} 10... O-O {[%clk 0:04:10.2]} 11. Ne4 {[%clk 0:04:14.2]}
11... Nxd4 {[%clk 0:04:04.9]} 12. Nxf6+ {[%clk 0:04:10.2]} 12... Bxf6 {[%clk
0:04:03.8]} 13. Qxb7 {[%clk 0:04:03.4]} 13... Nxc2 {[%clk 0:04:00.3]} 14. Rac1
{[%clk 0:03:59.9]} 14... Nxe3 {[%clk 0:03:59.3]} 15. fxe3 {[%clk 0:03:57.4]}
15... Rfb8 {[%clk 0:03:52.3]} 16. Qf3 {[%clk 0:03:37.7]} 16... Rxb2 {[%clk
0:03:50.8]} 17. Rfd1 {[%clk 0:03:31.6]} 17... Qe7 {[%clk 0:02:58.3]} 18. Qxa8+
{[%clk 0:03:25.1]} 18... Qf8 {[%clk 0:02:55.5]} 1-0

[Event "Live Chess"]
[Site "Chess.com"]
[Date "2023.05.20"]
[Round "-"]
[White "Conradical12"]
[Black "Jeffaroow"]
[Result "1-0"]
[WhiteElo "1523"]
[BlackElo "465"]
[TimeControl "300"]
[EndTime "10:14:39 PDT"]
[Termination "Conradical12 won by checkmate"]

1. e4 {[%clk 0:04:58.1]} 1... e5 {[%clk 0:04:58.3]} 2. Nf3 {[%clk 0:04:57.1]}
2... Nc6 {[%clk 0:04:55.4]} 3. Bc4 {[%clk 0:04:56.2]} 3... Nf6 {[%clk
0:04:53.4]} 4. Ng5 {[%clk 0:04:54.7]} 4... d5 {[%clk 0:04:51.8]} 5. exd5 {[%clk
0:04:54.6]} 5... Nxd5 {[%clk 0:04:50.6]} 6. Nxf7 {[%clk 0:04:53.2]} 6... Kxf7
{[%clk 0:04:47.4]} 7. Qf3+ {[%clk 0:04:52.1]} 7... Ke6 {[%clk 0:04:46.2]} 8. Nc3
{[%clk 0:04:49.9]} 8... Ne7 {[%clk 0:04:39.2]} 9. O-O {[%clk 0:04:40.5]} 9... b6
{[%clk 0:04:35.2]} 10. Re1 {[%clk 0:04:39.2]} 10... Bb7 {[%clk 0:04:31.4]} 11.
Qe2 {[%clk 0:04:37.1]} 11... Nc6 {[%clk 0:04:22.9]} 12. Bxd5+ {[%clk 0:04:34.6]}
12... Kd6 {[%clk 0:04:16.8]} 13. Bxc6 {[%clk 0:04:32.3]} 13... Bxc6 {[%clk
0:04:15.5]} 14. Qxe5+ {[%clk 0:04:31.8]} 14... Kd7 {[%clk 0:04:12.9]} 15. Qe6#
{[%clk 0:04:31.2]} 1-0

[Event "Live Chess"]
[Site "Chess.com"]
[Date "2023.05.20"]
[Round "-"]
[White "IanCalvert2"]
[Black "Alan_Richardson"]
[Result "0-1"]
[WhiteElo "1620"]
[BlackElo "1679"]
[TimeControl "300"]
[EndTime "10:14:40 PDT"]
[Termination "Alan_Richardson won on time"]

1. b3 {[%clk 0:04:58.8]} 1... e5 {[%clk 0:04:56.5]} 2. Bb2 {[%clk 0:04:57.6]}
2... Nc6 {[%clk 0:04:55.4]} 3. e3 {[%clk 0:04:56.1]} 3... d6 {[%clk 0:04:48.5]}
4. Nf3 {[%clk 0:04:50.8]} 4... Nf6 {[%clk 0:04:42.7]} 5. d4 {[%clk 0:04:48.3]}
5... Bg4 {[%clk 0:04:34.9]} 6. Be2 {[%clk 0:04:27.5]} 6... e4 {[%clk 0:04:32.4]}
7. Nfd2 {[%clk 0:04:24.5]} 7... Bxe2 {[%clk 0:04:29.8]} 8. Qxe2 {[%clk
0:04:23.3]} 8... d5 {[%clk 0:04:24.3]} 9. O-O {[%clk 0:04:21.1]} 9... Be7 {[%clk
0:04:22.4]} 10. c4 {[%clk 0:04:18.8]} 10... O-O {[%clk 0:04:13.9]} 11. Nc3
{[%clk 0:04:14.7]} 11... Bb4 {[%clk 0:04:01.1]} 12. cxd5 {[%clk 0:03:51.8]}
12... Bxc3 {[%clk 0:03:59.4]} 13. Bxc3 {[%clk 0:03:49.7]} 13... Qxd5 {[%clk
0:03:50.7]} 14. Qc4 {[%clk 0:03:42.2]} 14... Qg5 {[%clk 0:03:37]} 15. d5 {[%clk
0:03:09.7]} 15... Qxd5 {[%clk 0:03:26.8]} 16. Bxf6 {[%clk 0:03:05.1]} 16... Qxc4
{[%clk 0:03:25.2]} 17. bxc4 {[%clk 0:02:56.8]} 17... gxf6 {[%clk 0:03:22.4]} 18.
Nxe4 {[%clk 0:02:55.5]} 18... Kg7 {[%clk 0:03:21.9]} 19. Rfd1 {[%clk 0:02:52.1]}
19... Rfd8 {[%clk 0:03:17.5]} 20. Kf1 {[%clk 0:02:49.8]} 20... Ne5 {[%clk
0:03:12.4]} 21. c5 {[%clk 0:02:26.2]} 21... f5 {[%clk 0:02:54.3]} 22. Ng3 {[%clk
0:02:20.2]} 22... Kg6 {[%clk 0:02:49]} 23. Ke2 {[%clk 0:02:06.9]} 23... h5
{[%clk 0:02:38.6]} 24. Rxd8 {[%clk 0:02:01.4]} 24... Rxd8 {[%clk 0:02:36.6]} 25.
Rd1 {[%clk 0:01:57.7]} 25... Rxd1 {[%clk 0:02:33]} 26. Kxd1 {[%clk 0:01:56.4]}
26... Nd3 {[%clk 0:02:31.1]} 27. c6 {[%clk 0:01:46.4]} 27... bxc6 {[%clk
0:02:29.1]} 28. Ke2 {[%clk 0:01:42.3]} 28... Nc1+ {[%clk 0:02:25.6]} 29. Kd2
{[%clk 0:01:37.6]} 29... Nxa2 {[%clk 0:02:24.3]} 30. Ne2 {[%clk 0:01:34.1]}
30... Nb4 {[%clk 0:02:13.9]} 31. Kc3 {[%clk 0:01:27.5]} 31... Nd5+ {[%clk
0:02:12.4]} 32. Kd4 {[%clk 0:01:25.5]} 32... a5 {[%clk 0:02:02.2]} 33. Kc5
{[%clk 0:01:23.8]} 33... a4 {[%clk 0:02:00.6]} 34. Kxc6 {[%clk 0:01:22.6]} 34...
a3 {[%clk 0:01:56.1]} 35. Nc1 {[%clk 0:01:12.8]} 35... Nc3 {[%clk 0:01:54.2]}
36. Kxc7 {[%clk 0:01:06.1]} 36... a2 {[%clk 0:01:49.9]} 37. Nb3 {[%clk
0:01:03.1]} 37... Nd1 {[%clk 0:01:41.1]} 38. Kd6 {[%clk 0:00:45.1]} 38... Nxf2
{[%clk 0:01:39.4]} 39. Kc5 {[%clk 0:00:33.9]} 39... Nd3+ {[%clk 0:01:34.8]} 40.
Kd4 {[%clk 0:00:26.4]} 40... Ne1 {[%clk 0:01:33]} 41. Kc3 {[%clk 0:00:12.5]}
41... Nxg2 {[%clk 0:01:30]} 42. Kb2 {[%clk 0:00:06.3]} 42... Nxe3 {[%clk
0:01:27.9]} 43. Kxa2 {[%clk 0:00:05]} 43... f4 {[%clk 0:01:22.8]} 44. Nd2 {[%clk
0:00:03.4]} 44... Kf5 {[%clk 0:01:18.9]} 45. Kb2 {[%clk 0:00:01.1]} 45... Kg4
{[%clk 0:01:17.8]} 0-1

[Event "Live Chess"]
[Site "Chess.com"]
[Date "2023.05.20"]
[Round "-"]
[White "PetorPrydatko"]
[Black "Wlzard-1"]
[Result "0-1"]
[WhiteElo "372"]
[BlackElo "937"]
[TimeControl "300"]
[EndTime "10:14:45 PDT"]
[Termination "Wlzard-1 won on time"]

1. e4 {[%clk 0:04:55.4]} 1... d6 {[%clk 0:04:55.6]} 2. Bc4 {[%clk 0:04:49.3]}
2... Nf6 {[%clk 0:04:52.5]} 3. Nc3 {[%clk 0:04:43.6]} 3... g6 {[%clk 0:04:50.9]}
4. Nf3 {[%clk 0:04:35.4]} 4... Bg7 {[%clk 0:04:50]} 5. O-O {[%clk 0:04:34.3]}
5... Bg4 {[%clk 0:04:47.3]} 6. d4 {[%clk 0:04:22.7]} 6... Qd7 {[%clk 0:04:33]}
7. Bb5 {[%clk 0:04:18.3]} 7... c6 {[%clk 0:04:31]} 8. Ba4 {[%clk 0:04:13.8]}
8... b5 {[%clk 0:04:29.7]} 9. Bb3 {[%clk 0:04:05.2]} 9... Na6 {[%clk 0:04:28]}
10. h3 {[%clk 0:03:49.2]} 10... Be6 {[%clk 0:04:14.8]} 11. d5 {[%clk 0:03:30.2]}
11... cxd5 {[%clk 0:04:12.3]} 12. exd5 {[%clk 0:03:28.8]} 12... Bf5 {[%clk
0:04:04.8]} 13. Nd2 {[%clk 0:03:05.7]} 13... h5 {[%clk 0:03:56.8]} 14. Nf3
{[%clk 0:02:59.4]} 14... Nc7 {[%clk 0:03:35.1]} 15. a4 {[%clk 0:02:49.3]} 15...
b4 {[%clk 0:03:31.3]} 16. Ne2 {[%clk 0:02:30.5]} 16... Bxh3 {[%clk 0:03:27.7]}
17. gxh3 {[%clk 0:02:28.9]} 17... Qxh3 {[%clk 0:03:26.1]} 18. Ng5 {[%clk
0:02:02.5]} 18... Qg4+ {[%clk 0:03:19]} 19. Kh1 {[%clk 0:01:57]} 19... Qf3+
{[%clk 0:03:12.9]} 20. Kh2 {[%clk 0:01:55.2]} 20... Ng4+ {[%clk 0:03:09.2]} 21.
Kg1 {[%clk 0:01:51]} 21... Qf5 {[%clk 0:02:32.9]} 22. f4 {[%clk 0:01:43]} 22...
Bh6 {[%clk 0:02:13.7]} 23. Nd4 {[%clk 0:01:39.7]} 23... Qe4 {[%clk 0:01:59]} 24.
Qd2 {[%clk 0:01:14.9]} 24... Bxg5 {[%clk 0:01:53.4]} 25. fxg5 {[%clk 0:01:08.3]}
25... Nxd5 {[%clk 0:01:41.3]} 26. Re1 {[%clk 0:01:03.3]} 26... Nge3 {[%clk
0:01:09.9]} 27. Rxe3 {[%clk 0:00:52.1]} 27... Qg4+ {[%clk 0:01:04.3]} 28. Kf1
{[%clk 0:00:43.8]} 28... Qf4+ {[%clk 0:00:56.1]} 29. Ke1 {[%clk 0:00:34.9]}
29... Nxe3 {[%clk 0:00:52.1]} 30. Qxb4 {[%clk 0:00:31.8]} 30... Nxc2+ {[%clk
0:00:39.6]} 31. Kd1 {[%clk 0:00:18.9]} 31... Nxb4 {[%clk 0:00:37.5]} 32. Ke2
{[%clk 0:00:17.1]} 32... Qe4+ {[%clk 0:00:35]} 33. Kf2 {[%clk 0:00:15.9]} 33...
Nd3+ {[%clk 0:00:29.6]} 34. Kg3 {[%clk 0:00:14.9]} 34... Qxd4 {[%clk 0:00:24.7]}
35. Kh2 {[%clk 0:00:12.9]} 35... Qf2+ {[%clk 0:00:22.8]} 36. Kh3 {[%clk
0:00:11.9]} 36... Nf4+ {[%clk 0:00:18.7]} 37. Bxf4 {[%clk 0:00:06.6]} 37... Qxf4
{[%clk 0:00:17.7]} 38. Kg2 {[%clk 0:00:05.9]} 38... Rc8 {[%clk 0:00:15.1]} 39.
Kh3 {[%clk 0:00:04.2]} 39... Qe3+ {[%clk 0:00:13.3]} 40. Kh4 {[%clk 0:00:03]}
40... Qxb3 {[%clk 0:00:11.7]} 0-1

[Event "Live Chess"]
[Site "Chess.com"]
[Date "2023.05.20"]
[Round "-"]
[White "LL220284LL"]
[Black "MrDodgy"]
[Result "1-0"]
[WhiteElo "2417"]
[BlackElo "2321"]
[TimeControl "300"]
[EndTime "10:14:45 PDT"]
[Termination "LL220284LL won by resignation"]

1. Nf3 {[%clk 0:04:57.1]} 1... d5 {[%clk 0:04:58.5]} 2. c4 {[%clk 0:04:55.8]}
2... dxc4 {[%clk 0:04:56.9]} 3. Qa4+ {[%clk 0:04:54]} 3... c6 {[%clk 0:04:55.4]}
4. Qxc4 {[%clk 0:04:53.3]} 4... Nf6 {[%clk 0:04:54.7]} 5. g3 {[%clk 0:04:51.9]}
5... g6 {[%clk 0:04:53.9]} 6. Bg2 {[%clk 0:04:50.6]} 6... Bg7 {[%clk 0:04:53.4]}
7. O-O {[%clk 0:04:48.7]} 7... O-O {[%clk 0:04:52.9]} 8. d4 {[%clk 0:04:47.9]}
8... Be6 {[%clk 0:04:50.1]} 9. Qc2 {[%clk 0:04:46.7]} 9... Bf5 {[%clk
0:04:47.7]} 10. Qb3 {[%clk 0:04:45.8]} 10... Qc8 {[%clk 0:04:45.4]} 11. Re1
{[%clk 0:04:44.1]} 11... Be6 {[%clk 0:04:43.5]} 12. Qc2 {[%clk 0:04:42.5]} 12...
Bf5 {[%clk 0:04:42.9]} 13. e4 {[%clk 0:04:41.5]} 13... Bh3 {[%clk 0:04:42.3]}
14. Bh1 {[%clk 0:04:40.3]} 14... Na6 {[%clk 0:04:39.8]} 15. a3 {[%clk
0:04:38.8]} 15... Rd8 {[%clk 0:04:34.9]} 16. Nc3 {[%clk 0:04:36.2]} 16... h6
{[%clk 0:04:30.5]} 17. Bd2 {[%clk 0:04:25.2]} 17... Bg4 {[%clk 0:04:19.2]} 18.
Be3 {[%clk 0:04:22.2]} 18... c5 {[%clk 0:04:04]} 19. d5 {[%clk 0:04:13.6]} 19...
Qc7 {[%clk 0:03:54.9]} 20. Nd2 {[%clk 0:04:10.1]} 20... e6 {[%clk 0:03:38.9]}
21. Nc4 {[%clk 0:04:03.8]} 21... exd5 {[%clk 0:03:35.7]} 22. exd5 {[%clk
0:04:02.1]} 22... Bf5 {[%clk 0:03:32.4]} 23. Qc1 {[%clk 0:03:56]} 23... Ng4
{[%clk 0:03:28.4]} 24. d6 {[%clk 0:03:49.9]} 24... Qc8 {[%clk 0:03:17]} 25. Nd5
{[%clk 0:03:46.3]} 25... Kh7 {[%clk 0:03:10.2]} 26. Ne7 {[%clk 0:03:41.3]} 26...
Qd7 {[%clk 0:03:03.6]} 27. Nxf5 {[%clk 0:03:38.5]} 27... gxf5 {[%clk 0:02:48.6]}
28. Bf4 {[%clk 0:03:36.3]} 28... b5 {[%clk 0:02:41.5]} 29. Re7 {[%clk
0:03:30.7]} 29... Qc8 {[%clk 0:02:30]} 30. Bxa8 {[%clk 0:03:21.2]} 30... Qxa8
{[%clk 0:02:28.4]} 31. Qc2 {[%clk 0:03:18.1]} 31... Qd5 {[%clk 0:02:05.1]} 32.
Rd1 {[%clk 0:03:10.3]} 32... Qxc4 {[%clk 0:02:03.7]} 33. Qxf5+ {[%clk
0:03:08.4]} 33... Kh8 {[%clk 0:02:03.1]} 34. Qxg4 {[%clk 0:03:04.7]} 34... b4
{[%clk 0:01:46.5]} 35. d7 {[%clk 0:02:58.7]} 35... Nc7 {[%clk 0:01:37.4]} 36.
Qh5 {[%clk 0:02:49.6]} 36... Ne6 {[%clk 0:01:25.3]} 37. Bxh6 {[%clk 0:02:44.2]}
37... Nd4 {[%clk 0:01:12.9]} 38. Re8+ {[%clk 0:02:36.8]} 1-0

[Event "Live Chess"]
[Site "Chess.com"]
[Date "2023.05.20"]
[Round "-"]
[White "boilerboy1"]
[Black "Ishaan1618"]
[Result "1-0"]
[WhiteElo "1097"]
[BlackElo "675"]
[TimeControl "300"]
[EndTime "10:14:56 PDT"]
[Termination "boilerboy1 won on time"]

1. e4 {[%clk 0:04:54]} 1... d6 {[%clk 0:04:56.5]} 2. d4 {[%clk 0:04:52.4]} 2...
e5 {[%clk 0:04:54.1]} 3. dxe5 {[%clk 0:04:50.9]} 3... dxe5 {[%clk 0:04:51.7]} 4.
Qxd8+ {[%clk 0:04:48.9]} 4... Kxd8 {[%clk 0:04:46.4]} 5. Nf3 {[%clk 0:04:47]}
5... Bb4+ {[%clk 0:04:44]} 6. c3 {[%clk 0:04:44.5]} 6... Bc5 {[%clk 0:04:40.8]}
7. Nxe5 {[%clk 0:04:41.8]} 7... Bd6 {[%clk 0:04:37.4]} 8. Nxf7+ {[%clk
0:04:40.2]} 8... Ke8 {[%clk 0:03:58.7]} 9. Nxh8 {[%clk 0:04:37.9]} 9... Nf6
{[%clk 0:03:56.8]} 10. Bc4 {[%clk 0:04:34.7]} 10... Nxe4 {[%clk 0:03:51.5]} 11.
O-O {[%clk 0:04:28.9]} 11... Be5 {[%clk 0:03:45.3]} 12. Nf7 {[%clk 0:04:25.3]}
12... Bf5 {[%clk 0:03:30.5]} 13. Nxe5 {[%clk 0:04:23.1]} 13... Nd6 {[%clk
0:03:24.9]} 14. Bb3 {[%clk 0:04:18.3]} 14... Bxb1 {[%clk 0:03:20.5]} 15. Rxb1
{[%clk 0:04:15.9]} 15... Ne4 {[%clk 0:02:57.9]} 16. Re1 {[%clk 0:04:13.5]} 16...
Ke7 {[%clk 0:02:55.4]} 17. Bf4 {[%clk 0:04:09.6]} 17... Nd2 {[%clk 0:02:45.8]}
18. Nf3+ {[%clk 0:03:59.9]} 18... Kf6 {[%clk 0:02:29.3]} 19. Nxd2 {[%clk
0:03:58.1]} 19... Nc6 {[%clk 0:02:21.9]} 20. Ne4+ {[%clk 0:03:53.5]} 20... Kf5
{[%clk 0:02:17.1]} 21. Bxc7 {[%clk 0:03:50.4]} 21... Rc8 {[%clk 0:02:12.8]} 22.
Nd6+ {[%clk 0:03:48.4]} 22... Kg4 {[%clk 0:02:08.2]} 23. Nxc8 {[%clk 0:03:47.3]}
23... Ne7 {[%clk 0:01:15.6]} 24. Nxe7 {[%clk 0:03:42.7]} 24... g6 {[%clk
0:01:14.4]} 25. h3+ {[%clk 0:03:40.6]} 25... Kh4 {[%clk 0:01:07.6]} 26. Bg3+
{[%clk 0:03:39]} 26... Kg5 {[%clk 0:01:00.9]} 27. Re5+ {[%clk 0:03:36.7]} 27...
Kf6 {[%clk 0:00:55.4]} 28. Nd5+ {[%clk 0:03:28.9]} 28... Kf7 {[%clk 0:00:42.7]}
29. Nc7+ {[%clk 0:03:26.8]} 29... Kf8 {[%clk 0:00:37.2]} 30. Rd1 {[%clk
0:03:18.8]} 30... g5 {[%clk 0:00:30.9]} 31. Rd8+ {[%clk 0:03:15.5]} 31... Kg7
{[%clk 0:00:24.4]} 32. Rxg5+ {[%clk 0:03:13.2]} 32... Kf6 {[%clk 0:00:18.9]} 33.
h4 {[%clk 0:03:11.5]} 33... h6 {[%clk 0:00:18.2]} 34. Ne8+ {[%clk 0:03:04.2]}
34... Ke7 {[%clk 0:00:17.7]} 35. Rgd5 {[%clk 0:02:58.9]} 35... Ke6 {[%clk
0:00:14.1]} 36. Nc7+ {[%clk 0:02:55.7]} 36... Ke7 {[%clk 0:00:12.8]} 37. Nb5
{[%clk 0:02:48.1]} 37... h5 {[%clk 0:00:10]} 38. R5d7+ {[%clk 0:02:44.9]} 38...
Kf6 {[%clk 0:00:02]} 39. Rf8+ {[%clk 0:02:38.4]} 1-0